[Event "*** MasterClass Titled Tuesday Blitz"]
[Site "Chess.com"]
[Date "2017.11.07"]
[Round "6"]
[White "Noukii"]
[Black "Fy_Rakotomaharo"]
[Result "1-0"]
[WhiteElo "2606"]
[BlackElo "2451"]
[TimeControl "180+2"]
[EndTime "15:29:24 PST"]
[Termination "Noukii won on time"]

1. d4 {[%clk 0:03:01.9]} 1... d5 {[%clk 0:03:00.7]} 2. Nf3 {[%clk 0:03:02.2]}
2... Nf6 {[%clk 0:03:00.7]} 3. c4 {[%clk 0:03:03.8]} 3... e6 {[%clk 0:03:01.4]}
4. g3 {[%clk 0:03:04.5]} 4... c6 {[%clk 0:03:02.4]} 5. Bg2 {[%clk 0:03:06]} 5...
Nbd7 {[%clk 0:03:02.9]} 6. O-O {[%clk 0:03:02.2]} 6... Be7 {[%clk 0:02:52.8]} 7.
Nc3 {[%clk 0:03:02.7]} 7... O-O {[%clk 0:02:52.4]} 8. Nd2 {[%clk 0:03:04.2]}
8... Re8 {[%clk 0:02:35.1]} 9. e4 {[%clk 0:03:04.7]} 9... dxe4 {[%clk
0:02:34.2]} 10. Ndxe4 {[%clk 0:03:06.6]} 10... Nf8 {[%clk 0:02:31.5]} 11. Be3
{[%clk 0:03:04.6]} 11... Ng6 {[%clk 0:02:29.5]} 12. Qe2 {[%clk 0:02:48.2]} 12...
e5 {[%clk 0:02:21.9]} 13. Nxf6+ {[%clk 0:02:47.7]} 13... Bxf6 {[%clk 0:02:22.5]}
14. d5 {[%clk 0:02:49.6]} 14... Bd7 {[%clk 0:02:13.7]} 15. Rad1 {[%clk
0:02:48.2]} 15... Qc7 {[%clk 0:02:09.4]} 16. Ne4 {[%clk 0:02:46.7]} 16... cxd5
{[%clk 0:02:03.9]} 17. Nxf6+ {[%clk 0:02:47.3]} 17... gxf6 {[%clk 0:02:04.2]}
18. Bxd5 {[%clk 0:02:41.2]} 18... Be6 {[%clk 0:01:56.8]} 19. b3 {[%clk
0:02:39.5]} 19... Rad8 {[%clk 0:01:57.1]} 20. Bg2 {[%clk 0:02:39]} 20... f5
{[%clk 0:01:53.8]} 21. Bg5 {[%clk 0:02:38.8]} 21... Rxd1 {[%clk 0:01:49.4]} 22.
Rxd1 {[%clk 0:02:40.7]} 22... Kg7 {[%clk 0:01:50.3]} 23. Qh5 {[%clk 0:02:41.9]}
23... f6 {[%clk 0:01:48.6]} 24. Qh6+ {[%clk 0:02:43.1]} 24... Kg8 {[%clk
0:01:45.9]} 25. Bxf6 {[%clk 0:02:44.2]} 25... Qf7 {[%clk 0:01:45.9]} 26. Qg5
{[%clk 0:02:34.8]} 26... h6 {[%clk 0:01:37.6]} 27. Qxh6 {[%clk 0:02:35.8]} 27...
Qxf6 {[%clk 0:01:38.6]} 28. h4 {[%clk 0:02:16]} 28... Qg7 {[%clk 0:01:36.6]} 29.
Qe3 {[%clk 0:02:17.4]} 29... f4 {[%clk 0:01:25.5]} 30. Qxa7 {[%clk 0:02:13.7]}
30... Nxh4 {[%clk 0:01:23.4]} 31. Qxb7 {[%clk 0:02:10.9]} 31... fxg3 {[%clk
0:00:57.3]} 32. Qxg7+ {[%clk 0:02:04.5]} 32... Kxg7 {[%clk 0:00:57.8]} 33. fxg3
{[%clk 0:02:06.4]} 33... Nf5 {[%clk 0:00:57.6]} 34. Rd3 {[%clk 0:01:57.5]} 34...
Nd4 {[%clk 0:00:54.5]} 35. a4 {[%clk 0:01:55]} 35... Rf8 {[%clk 0:00:54.5]} 36.
Be4 {[%clk 0:01:50.2]} 36... Rb8 {[%clk 0:00:47.7]} 37. a5 {[%clk 0:01:50.9]}
37... Bc8 {[%clk 0:00:40]} 38. c5 {[%clk 0:01:32.9]} 38... Rxb3 {[%clk
0:00:31.3]} 39. Rxb3 {[%clk 0:01:13.9]} 39... Nxb3 {[%clk 0:00:32.2]} 40. c6
{[%clk 0:01:15.8]} 40... Nxa5 {[%clk 0:00:32.8]} 41. Kf2 {[%clk 0:01:17.7]}
41... Kf6 {[%clk 0:00:31]} 42. Kf3 {[%clk 0:01:19.2]} 42... Kg5 {[%clk
0:00:31.1]} 43. Bd5 {[%clk 0:01:19.2]} 43... Bf5 {[%clk 0:00:28.1]} 44. Kf2
{[%clk 0:01:15.5]} 44... Kf6 {[%clk 0:00:24.4]} 45. Kf3 {[%clk 0:01:16.8]} 45...
Bd3 {[%clk 0:00:16.5]} 46. g4 {[%clk 0:01:13.4]} 46... Nc4 {[%clk 0:00:16.2]}
47. c7 {[%clk 0:01:04]} 47... Nd6 {[%clk 0:00:16.3]} 48. Bb7 {[%clk 0:01:01.5]}
48... e4+ {[%clk 0:00:15.7]} 49. Kf4 {[%clk 0:01:00.6]} 49... e3 {[%clk
0:00:11.6]} 50. Kxe3 {[%clk 0:00:59.4]} 50... Bb1 {[%clk 0:00:09.6]} 51. Kf4
{[%clk 0:00:58.9]} 51... Kg6 {[%clk 0:00:09.4]} 52. Ke5 {[%clk 0:00:56.3]} 52...
Nf7+ {[%clk 0:00:06.1]} 53. Ke6 {[%clk 0:00:54.4]} 53... Ba2+ {[%clk 0:00:05.1]}
54. Ke7 {[%clk 0:00:55.4]} 1-0

[Event "*** MasterClass Titled Tuesday Blitz"]
[Site "Chess.com"]
[Date "2017.11.07"]
[Round "6"]
[White "Dr-Bassem"]
[Black "igorkovalenko"]
[Result "1-0"]
[WhiteElo "2610"]
[BlackElo "2775"]
[TimeControl "180+2"]
[EndTime "15:29:25 PST"]
[Termination "Dr-Bassem won by resignation"]

1. e4 {[%clk 0:03:01.7]} 1... d5 {[%clk 0:03:01.1]} 2. exd5 {[%clk 0:03:02]}
2... Qxd5 {[%clk 0:03:03]} 3. Nc3 {[%clk 0:03:02.6]} 3... Qd6 {[%clk 0:03:04.5]}
4. d4 {[%clk 0:03:04]} 4... Nf6 {[%clk 0:03:05.7]} 5. Nf3 {[%clk 0:03:05.3]}
5... g6 {[%clk 0:03:06.1]} 6. Ne5 {[%clk 0:03:03.6]} 6... Bg7 {[%clk 0:03:04.6]}
7. Bc4 {[%clk 0:02:44.8]} 7... O-O {[%clk 0:03:04.4]} 8. O-O {[%clk 0:02:45.9]}
8... Nc6 {[%clk 0:03:01.3]} 9. Nb5 {[%clk 0:02:36.2]} 9... Qd8 {[%clk
0:03:02.2]} 10. Bg5 {[%clk 0:02:27.7]} 10... Bf5 {[%clk 0:02:52.6]} 11. Re1
{[%clk 0:02:23.2]} 11... h6 {[%clk 0:02:49.3]} 12. Bf4 {[%clk 0:02:21.3]} 12...
Nxe5 {[%clk 0:02:10.1]} 13. Bxe5 {[%clk 0:02:16.9]} 13... c6 {[%clk 0:02:07.8]}
14. Nc3 {[%clk 0:02:16.8]} 14... Qd7 {[%clk 0:02:05]} 15. Qe2 {[%clk 0:02:09.7]}
15... Rad8 {[%clk 0:02:04.5]} 16. Rad1 {[%clk 0:02:09.6]} 16... Rfe8 {[%clk
0:02:05]} 17. h3 {[%clk 0:02:08]} 17... b5 {[%clk 0:01:54.9]} 18. Bb3 {[%clk
0:02:07.1]} 18... a5 {[%clk 0:01:55.9]} 19. a4 {[%clk 0:01:38]} 19... b4 {[%clk
0:01:56.9]} 20. Nb1 {[%clk 0:01:38.6]} 20... Nd5 {[%clk 0:01:38.7]} 21. Bxg7
{[%clk 0:01:39.2]} 21... Kxg7 {[%clk 0:01:39.9]} 22. Nd2 {[%clk 0:01:40.1]}
22... Qc7 {[%clk 0:01:36]} 23. Nc4 {[%clk 0:01:40.6]} 23... f6 {[%clk
0:01:04.2]} 24. Qf3 {[%clk 0:01:18]} 24... Bc8 {[%clk 0:01:03]} 25. Nd2 {[%clk
0:01:00.1]} 25... g5 {[%clk 0:00:57.4]} 26. Ne4 {[%clk 0:01:00.1]} 26... Qf4
{[%clk 0:00:57.8]} 27. Qe2 {[%clk 0:00:54.6]} 27... Qc7 {[%clk 0:00:26.9]} 28.
Ng3 {[%clk 0:00:43.6]} 28... Nf4 {[%clk 0:00:27.9]} 29. Qc4 {[%clk 0:00:42.6]}
29... e6 {[%clk 0:00:16.2]} 30. Ne4 {[%clk 0:00:34.6]} 30... Rd5 {[%clk
0:00:16.2]} 31. Qf1 {[%clk 0:00:30.8]} 31... Rdd8 {[%clk 0:00:17.2]} 32. g3
{[%clk 0:00:31.8]} 32... Nd5 {[%clk 0:00:18.4]} 33. Nc5 {[%clk 0:00:27.9]} 33...
e5 {[%clk 0:00:18.7]} 34. dxe5 {[%clk 0:00:23]} 34... Rxe5 {[%clk 0:00:20.6]}
35. Nd3 {[%clk 0:00:18.1]} 35... Rxe1 {[%clk 0:00:21]} 36. Rxe1 {[%clk
0:00:19.9]} 36... Bf5 {[%clk 0:00:22.2]} 37. Nc5 {[%clk 0:00:17.6]} 37... Qc8
{[%clk 0:00:18.8]} 38. Kh2 {[%clk 0:00:15.8]} 38... Bg6 {[%clk 0:00:19]} 39. Qc4
{[%clk 0:00:13.6]} 39... Bf7 {[%clk 0:00:20]} 40. Qe2 {[%clk 0:00:08.4]} 40...
Re8 {[%clk 0:00:20.6]} 41. Qd2 {[%clk 0:00:09.2]} 41... Rxe1 {[%clk 0:00:22.5]}
42. Qxe1 {[%clk 0:00:10.6]} 42... Qf8 {[%clk 0:00:23.5]} 43. Nb7 {[%clk
0:00:10.3]} 43... Qa8 {[%clk 0:00:23.5]} 44. Nd6 {[%clk 0:00:11.1]} 44... Qd8
{[%clk 0:00:23.7]} 45. Nxf7 {[%clk 0:00:07.9]} 45... Kxf7 {[%clk 0:00:24.5]} 46.
Qe3 {[%clk 0:00:08.2]} 46... Kg7 {[%clk 0:00:23.6]} 47. Qa7+ {[%clk 0:00:08.2]}
47... Qc7 {[%clk 0:00:23.7]} 48. Qc5 {[%clk 0:00:09]} 48... Ne7 {[%clk 0:00:24]}
49. Be6 {[%clk 0:00:07.8]} 49... Qe5 {[%clk 0:00:24.8]} 50. Qxe7+ {[%clk
0:00:07.8]} 1-0

[Event "*** MasterClass Titled Tuesday Blitz"]
[Site "Chess.com"]
[Date "2017.11.07"]
[Round "6"]
[White "Zufi1811"]
[Black "hypert"]
[Result "1/2-1/2"]
[WhiteElo "2430"]
[BlackElo "2347"]
[TimeControl "180+2"]
[EndTime "15:29:26 PST"]
[Termination "Game drawn - insufficient material"]

1. d4 {[%clk 0:03:01.9]} 1... Nf6 {[%clk 0:03:00.1]} 2. Nf3 {[%clk 0:03:03.8]}
2... e6 {[%clk 0:03:00.9]} 3. e3 {[%clk 0:03:05.3]} 3... d5 {[%clk 0:03:01.2]}
4. Bd3 {[%clk 0:03:06.7]} 4... c5 {[%clk 0:03:01.4]} 5. b3 {[%clk 0:03:07.3]}
5... Nc6 {[%clk 0:03:00.2]} 6. Bb2 {[%clk 0:03:08.5]} 6... Be7 {[%clk
0:03:01.6]} 7. a3 {[%clk 0:03:08.9]} 7... O-O {[%clk 0:03:03]} 8. O-O {[%clk
0:03:10.3]} 8... Nd7 {[%clk 0:02:59.9]} 9. c4 {[%clk 0:02:54.8]} 9... dxc4
{[%clk 0:02:59.1]} 10. bxc4 {[%clk 0:02:54.6]} 10... Bf6 {[%clk 0:02:59.9]} 11.
Qc2 {[%clk 0:02:49]} 11... g6 {[%clk 0:02:55.4]} 12. Nbd2 {[%clk 0:02:46.9]}
12... cxd4 {[%clk 0:02:55]} 13. exd4 {[%clk 0:02:48.8]} 13... b6 {[%clk
0:02:53.9]} 14. Ne4 {[%clk 0:02:43.7]} 14... Bg7 {[%clk 0:02:51.4]} 15. Rad1
{[%clk 0:02:44.9]} 15... Ne7 {[%clk 0:02:42]} 16. Nd6 {[%clk 0:02:40.9]} 16...
Qc7 {[%clk 0:02:30.9]} 17. Nxc8 {[%clk 0:02:36.1]} 17... Raxc8 {[%clk 0:02:31]}
18. Qe2 {[%clk 0:02:33.6]} 18... Nb8 {[%clk 0:02:22.2]} 19. g3 {[%clk
0:02:14.6]} 19... Rfd8 {[%clk 0:02:20.4]} 20. h4 {[%clk 0:02:11.6]} 20... Nbc6
{[%clk 0:02:20.1]} 21. Be4 {[%clk 0:01:50.5]} 21... Na5 {[%clk 0:02:17.3]} 22.
d5 {[%clk 0:01:42.4]} 22... Bxb2 {[%clk 0:02:13.3]} 23. Qxb2 {[%clk 0:01:44.3]}
23... Nxc4 {[%clk 0:02:13.9]} 24. Qf6 {[%clk 0:01:44.9]} 24... Nxd5 {[%clk
0:02:11.6]} 25. Bxd5 {[%clk 0:01:42]} 25... Rxd5 {[%clk 0:02:11.9]} 26. Rxd5
{[%clk 0:01:35.1]} 26... exd5 {[%clk 0:02:12.4]} 27. Ng5 {[%clk 0:01:27.7]}
27... h6 {[%clk 0:02:08.1]} 28. Re1 {[%clk 0:01:10.2]} 28... hxg5 {[%clk
0:02:05.7]} 29. Re7 {[%clk 0:01:10.4]} 29... Qxe7 {[%clk 0:01:48.1]} 30. Qxe7
{[%clk 0:01:12.3]} 30... gxh4 {[%clk 0:01:40.2]} 31. gxh4 {[%clk 0:01:14.2]}
31... Nd2 {[%clk 0:01:39.8]} 32. Kg2 {[%clk 0:01:12.6]} 32... Ne4 {[%clk
0:01:38.5]} 33. f3 {[%clk 0:01:09.5]} 33... Nc3 {[%clk 0:01:37.1]} 34. Qxa7
{[%clk 0:00:58.9]} 34... d4 {[%clk 0:01:31.3]} 35. Qd7 {[%clk 0:00:58.2]} 35...
Rc4 {[%clk 0:01:29.1]} 36. Qd8+ {[%clk 0:00:44.6]} 36... Kg7 {[%clk 0:01:28.7]}
37. Qxb6 {[%clk 0:00:46.5]} 37... d3 {[%clk 0:01:26.2]} 38. Qd6 {[%clk
0:00:46.7]} 38... Ne2 {[%clk 0:01:16.4]} 39. Kf2 {[%clk 0:00:47.5]} 39... Rd4
{[%clk 0:01:16.4]} 40. Qe5+ {[%clk 0:00:43.4]} 40... Kf8 {[%clk 0:01:02.5]} 41.
h5 {[%clk 0:00:42.3]} 41... gxh5 {[%clk 0:01:02.6]} 42. a4 {[%clk 0:00:37.9]}
42... d2 {[%clk 0:01:02.5]} 43. Qh8+ {[%clk 0:00:35.8]} 43... Ke7 {[%clk
0:01:02.1]} 44. Qe5+ {[%clk 0:00:37.1]} 44... Kd7 {[%clk 0:00:55.7]} 45. Qf5+
{[%clk 0:00:31]} 45... Kc6 {[%clk 0:00:50.3]} 46. Qc2+ {[%clk 0:00:32]} 46...
Kd6 {[%clk 0:00:50.7]} 47. Kxe2 {[%clk 0:00:31]} 47... d1=Q+ {[%clk 0:00:45.8]}
48. Qxd1 {[%clk 0:00:32.4]} 48... Rxd1 {[%clk 0:00:47.2]} 49. Kxd1 {[%clk
0:00:34.3]} 49... Kc5 {[%clk 0:00:48.5]} 50. Ke2 {[%clk 0:00:35.7]} 50... Kb4
{[%clk 0:00:50.1]} 51. Kf2 {[%clk 0:00:37.3]} 51... Kxa4 {[%clk 0:00:51.7]} 52.
Kg3 {[%clk 0:00:39.2]} 52... Kb4 {[%clk 0:00:53.3]} 53. Kh4 {[%clk 0:00:41.1]}
53... Kc4 {[%clk 0:00:52.7]} 54. Kxh5 {[%clk 0:00:43]} 54... Kd5 {[%clk
0:00:53.7]} 55. Kg5 {[%clk 0:00:42.1]} 55... Ke5 {[%clk 0:00:54.4]} 56. Kg4
{[%clk 0:00:40.3]} 56... Ke6 {[%clk 0:00:52.7]} 57. Kf4 {[%clk 0:00:39.3]} 57...
Kf6 {[%clk 0:00:53.4]} 58. Kg4 {[%clk 0:00:40.1]} 58... Ke5 {[%clk 0:00:54]} 59.
Kg5 {[%clk 0:00:39.6]} 59... f5 {[%clk 0:00:33.2]} 60. Kg6 {[%clk 0:00:34.8]}
60... Kf4 {[%clk 0:00:32.1]} 61. Kf6 {[%clk 0:00:35.9]} 61... Kxf3 {[%clk
0:00:31.5]} 62. Kxf5 {[%clk 0:00:37.8]} 1/2-1/2

[Event "*** MasterClass Titled Tuesday Blitz"]
[Site "Chess.com"]
[Date "2017.11.07"]
[Round "6"]
[White "Oneofmyturns"]
[Black "hansen"]
[Result "0-1"]
[WhiteElo "2513"]
[BlackElo "2576"]
[TimeControl "180+2"]
[EndTime "15:29:37 PST"]
[Termination "hansen won by resignation"]

1. d4 {[%clk 0:03:01.9]} 1... Nf6 {[%clk 0:02:58.5]} 2. c4 {[%clk 0:03:02.9]}
2... g6 {[%clk 0:02:54.6]} 3. Nc3 {[%clk 0:03:04.2]} 3... d5 {[%clk 0:02:54.3]}
4. Nf3 {[%clk 0:02:58.2]} 4... Bg7 {[%clk 0:02:52.5]} 5. Qb3 {[%clk 0:02:59.7]}
5... dxc4 {[%clk 0:02:50.2]} 6. Qxc4 {[%clk 0:03:01.6]} 6... O-O {[%clk
0:02:51.5]} 7. e4 {[%clk 0:03:02.9]} 7... Bg4 {[%clk 0:02:52.7]} 8. Be3 {[%clk
0:03:01.4]} 8... Nfd7 {[%clk 0:02:51.1]} 9. Rd1 {[%clk 0:02:57]} 9... Nb6 {[%clk
0:02:50.5]} 10. Qb3 {[%clk 0:02:51.3]} 10... e6 {[%clk 0:02:44.3]} 11. Be2
{[%clk 0:02:52]} 11... Nc6 {[%clk 0:02:43.2]} 12. e5 {[%clk 0:02:33.3]} 12...
Qe7 {[%clk 0:02:41.5]} 13. Ne4 {[%clk 0:02:26.2]} 13... Qb4+ {[%clk 0:02:33.2]}
14. Qxb4 {[%clk 0:02:23.6]} 14... Nxb4 {[%clk 0:02:35.1]} 15. a3 {[%clk
0:02:24]} 15... Nc2+ {[%clk 0:01:48.8]} 16. Kd2 {[%clk 0:02:25.4]} 16... Nxe3
{[%clk 0:01:49.6]} 17. fxe3 {[%clk 0:02:27.3]} 17... Nd5 {[%clk 0:01:50.5]} 18.
Bc4 {[%clk 0:02:28.9]} 18... Rad8 {[%clk 0:01:42.2]} 19. Ke2 {[%clk 0:01:45.4]}
19... Bh6 {[%clk 0:01:32.7]} 20. Bxd5 {[%clk 0:01:44.9]} 20... Bxf3+ {[%clk
0:01:27.5]} 21. gxf3 {[%clk 0:01:46]} 21... exd5 {[%clk 0:01:29.1]} 22. Nf6+
{[%clk 0:01:34.1]} 22... Kh8 {[%clk 0:01:30.1]} 23. Rc1 {[%clk 0:01:31.3]} 23...
c6 {[%clk 0:01:30.8]} 24. b4 {[%clk 0:01:26.5]} 24... Bg7 {[%clk 0:01:30.8]} 25.
Ng4 {[%clk 0:01:27.8]} 25... a6 {[%clk 0:01:24]} 26. f4 {[%clk 0:01:16.3]} 26...
f6 {[%clk 0:01:07.5]} 27. h4 {[%clk 0:01:05.6]} 27... h5 {[%clk 0:01:00.5]} 28.
Nf2 {[%clk 0:00:51.1]} 28... Rf7 {[%clk 0:00:56.2]} 29. Nd3 {[%clk 0:00:49.2]}
29... Kh7 {[%clk 0:00:55]} 30. Nc5 {[%clk 0:00:46]} 30... Ra8 {[%clk 0:00:54.5]}
31. Nb3 {[%clk 0:00:30]} 31... Bf8 {[%clk 0:00:49.6]} 32. Rh3 {[%clk 0:00:23.2]}
32... Be7 {[%clk 0:00:50.5]} 33. exf6 {[%clk 0:00:13]} 33... Bxf6 {[%clk
0:00:51.1]} 34. Kd3 {[%clk 0:00:14.6]} 34... Re7 {[%clk 0:00:49.5]} 35. Rg1
{[%clk 0:00:15.3]} 35... Rg8 {[%clk 0:00:45.9]} 36. Nc5 {[%clk 0:00:15.1]} 36...
Rge8 {[%clk 0:00:44]} 37. a4 {[%clk 0:00:16.2]} 37... Ra8 {[%clk 0:00:32]} 38.
a5 {[%clk 0:00:17.5]} 38... Rae8 {[%clk 0:00:32.7]} 39. Na4 {[%clk 0:00:18.8]}
39... Rf7 {[%clk 0:00:32.9]} 40. Rb1 {[%clk 0:00:18.1]} 40... Be7 {[%clk
0:00:32.9]} 41. Nc5 {[%clk 0:00:19.6]} 41... Bf6 {[%clk 0:00:32.6]} 42. Rg1
{[%clk 0:00:20.6]} 42... Rfe7 {[%clk 0:00:33.6]} 43. Rg2 {[%clk 0:00:21.3]}
43... Kh6 {[%clk 0:00:34.8]} 44. Na4 {[%clk 0:00:22]} 44... Re4 {[%clk
0:00:23.3]} 45. Nc3 {[%clk 0:00:21]} 45... R4e7 {[%clk 0:00:23.7]} 46. Rb2
{[%clk 0:00:21.8]} 46... Kg7 {[%clk 0:00:21.3]} 47. Ne2 {[%clk 0:00:23.1]} 47...
Kf7 {[%clk 0:00:21.9]} 48. Nc3 {[%clk 0:00:20.2]} 48... Kg7 {[%clk 0:00:22.5]}
49. Nd1 {[%clk 0:00:21.7]} 49... Kf7 {[%clk 0:00:23.2]} 50. Nf2 {[%clk
0:00:23.2]} 50... Ke6 {[%clk 0:00:22.6]} 51. Re2 {[%clk 0:00:19.4]} 51... Kf5
{[%clk 0:00:23.7]} 52. Re1 {[%clk 0:00:18.1]} 52... Re6 {[%clk 0:00:23]} 53. Rg1
{[%clk 0:00:18.8]} 53... Be7 {[%clk 0:00:24]} 54. Rb1 {[%clk 0:00:20.2]} 54...
Bxh4 {[%clk 0:00:21.7]} 55. Nh1 {[%clk 0:00:10.9]} 55... Kg4 {[%clk 0:00:20.6]}
56. Rxh4+ {[%clk 0:00:02.6]} 56... Kxh4 {[%clk 0:00:21.4]} 57. Rg1 {[%clk
0:00:03.2]} 57... Rxe3+ {[%clk 0:00:22]} 58. Kd2 {[%clk 0:00:04.9]} 0-1

[Event "*** MasterClass Titled Tuesday Blitz"]
[Site "Chess.com"]
[Date "2017.11.07"]
[Round "6"]
[White "Grebeniuk-S"]
[Black "TheMagician"]
[Result "1-0"]
[WhiteElo "2424"]
[BlackElo "2249"]
[TimeControl "180+2"]
[EndTime "15:29:50 PST"]
[Termination "Grebeniuk-S won by resignation"]

1. d4 {[%clk 0:03:01.9]} 1... Nf6 {[%clk 0:03:00.5]} 2. Nf3 {[%clk 0:03:02.1]}
2... g6 {[%clk 0:03:01.5]} 3. Bg5 {[%clk 0:03:02.8]} 3... Bg7 {[%clk 0:03:01.8]}
4. Nbd2 {[%clk 0:03:04.4]} 4... d5 {[%clk 0:03:00.7]} 5. e3 {[%clk 0:03:05]}
5... O-O {[%clk 0:02:59.7]} 6. Be2 {[%clk 0:03:06.4]} 6... c5 {[%clk 0:02:57]}
7. c3 {[%clk 0:03:06.6]} 7... Qb6 {[%clk 0:02:49.9]} 8. Qc1 {[%clk 0:02:48]}
8... Nc6 {[%clk 0:02:49.2]} 9. O-O {[%clk 0:02:46.6]} 9... Bg4 {[%clk
0:02:46.3]} 10. h3 {[%clk 0:02:46.3]} 10... Bxf3 {[%clk 0:02:47.3]} 11. Bxf3
{[%clk 0:02:44.7]} 11... e6 {[%clk 0:02:45.4]} 12. a3 {[%clk 0:02:31.2]} 12...
Rac8 {[%clk 0:02:42.6]} 13. Qb1 {[%clk 0:02:29.1]} 13... h6 {[%clk 0:02:37.4]}
14. Bh4 {[%clk 0:02:26.7]} 14... Rfe8 {[%clk 0:02:31.7]} 15. b4 {[%clk
0:02:23.8]} 15... cxd4 {[%clk 0:02:08.9]} 16. cxd4 {[%clk 0:02:24.3]} 16... g5
{[%clk 0:02:10]} 17. Bg3 {[%clk 0:02:25.1]} 17... e5 {[%clk 0:02:09.2]} 18. b5
{[%clk 0:02:11.2]} 18... Nxd4 {[%clk 0:01:44.5]} 19. exd4 {[%clk 0:02:10.8]}
19... e4 {[%clk 0:01:41.2]} 20. Be2 {[%clk 0:01:48.7]} 20... Qxd4 {[%clk
0:01:41.6]} 21. Nb3 {[%clk 0:01:47.3]} 21... Qb6 {[%clk 0:01:42.3]} 22. a4
{[%clk 0:01:33.7]} 22... d4 {[%clk 0:01:39]} 23. Rd1 {[%clk 0:01:24.8]} 23... d3
{[%clk 0:01:38.7]} 24. Bf1 {[%clk 0:01:26]} 24... Nh5 {[%clk 0:01:39.4]} 25. a5
{[%clk 0:01:24.8]} 25... Qf6 {[%clk 0:01:38.1]} 26. Bxd3 {[%clk 0:00:53.8]}
26... exd3 {[%clk 0:01:28.6]} 27. Rxd3 {[%clk 0:00:55.7]} 27... Nxg3 {[%clk
0:01:27.1]} 28. Rxg3 {[%clk 0:00:44.4]} 28... Rc3 {[%clk 0:01:28]} 29. Rxc3
{[%clk 0:00:30.6]} 29... Qxc3 {[%clk 0:01:28.8]} 30. Qd1 {[%clk 0:00:32.2]}
30... Qb4 {[%clk 0:01:20.8]} 31. Rb1 {[%clk 0:00:20.9]} 31... Qxb5 {[%clk
0:01:20.7]} 32. Nd4 {[%clk 0:00:17.2]} 32... Qd5 {[%clk 0:01:14.7]} 33. Nf3
{[%clk 0:00:15.7]} 33... Qxd1+ {[%clk 0:01:13.8]} 34. Rxd1 {[%clk 0:00:17.6]}
34... Re7 {[%clk 0:01:12.4]} 35. Rd8+ {[%clk 0:00:17.9]} 35... Kh7 {[%clk
0:01:13.5]} 36. g4 {[%clk 0:00:18.3]} 36... Bc3 {[%clk 0:01:13.8]} 37. Rd5
{[%clk 0:00:18.5]} 37... Bf6 {[%clk 0:01:02.1]} 38. Kg2 {[%clk 0:00:19.3]} 38...
Kg6 {[%clk 0:01:01.1]} 39. Rd6 {[%clk 0:00:20.3]} 39... Kg7 {[%clk 0:00:59.9]}
40. Rd5 {[%clk 0:00:21.1]} 40... Rc7 {[%clk 0:01:00.9]} 41. Rb5 {[%clk
0:00:20.9]} 41... a6 {[%clk 0:00:59.9]} 42. Rd5 {[%clk 0:00:18.2]} 42... Rc2
{[%clk 0:00:53.4]} 43. Nd2 {[%clk 0:00:18.1]} 43... Ra2 {[%clk 0:00:53.4]} 44.
Nc4 {[%clk 0:00:18.6]} 44... Ra4 {[%clk 0:00:52.8]} 45. Rc5 {[%clk 0:00:17.4]}
45... Bd4 {[%clk 0:00:49.5]} 46. Rc7 {[%clk 0:00:17.9]} 46... Kg6 {[%clk
0:00:44.9]} 47. Kf3 {[%clk 0:00:15.3]} 47... Ra2 {[%clk 0:00:45.2]} 48. Ke4
{[%clk 0:00:16]} 48... Bxf2 {[%clk 0:00:46.1]} 49. Rxb7 {[%clk 0:00:16.2]} 49...
Bg1 {[%clk 0:00:45]} 50. Ne5+ {[%clk 0:00:16.9]} 50... Kf6 {[%clk 0:00:44.4]}
51. Rxf7+ {[%clk 0:00:17.4]} 51... Ke6 {[%clk 0:00:45.5]} 52. Rf1 {[%clk
0:00:08.9]} 52... Ra4+ {[%clk 0:00:43.1]} 53. Kd3 {[%clk 0:00:09.3]} 53... Kxe5
{[%clk 0:00:44.1]} 54. Rxg1 {[%clk 0:00:10.4]} 54... Ra3+ {[%clk 0:00:45.6]} 55.
Kc4 {[%clk 0:00:10.6]} 55... Rxh3 {[%clk 0:00:46.5]} 56. Kc5 {[%clk 0:00:11]}
56... Rb3 {[%clk 0:00:44.3]} 57. Rf1 {[%clk 0:00:12]} 57... Rb5+ {[%clk
0:00:44.6]} 58. Kc6 {[%clk 0:00:13.5]} 58... Rxa5 {[%clk 0:00:46]} 59. Rf5+
{[%clk 0:00:13.9]} 59... Ke4 {[%clk 0:00:47.1]} 60. Rxa5 {[%clk 0:00:15.8]}
60... Kf4 {[%clk 0:00:48.1]} 61. Ra4+ {[%clk 0:00:17.2]} 61... Kg3 {[%clk
0:00:48.6]} 62. Kd5 {[%clk 0:00:18.5]} 62... a5 {[%clk 0:00:44.6]} 63. Ke5
{[%clk 0:00:19.5]} 63... Kh4 {[%clk 0:00:43.1]} 64. Kf5 {[%clk 0:00:20.2]} 64...
h5 {[%clk 0:00:43.4]} 65. gxh5+ {[%clk 0:00:21.4]} 65... Kxh5 {[%clk 0:00:45.3]}
66. Rg4 {[%clk 0:00:22.4]} 66... a4 {[%clk 0:00:44.8]} 67. Rxa4 {[%clk
0:00:23.4]} 67... g4 {[%clk 0:00:45.1]} 68. Rxg4 {[%clk 0:00:25.3]} 68... Kh6
{[%clk 0:00:46.4]} 69. Rg5 {[%clk 0:00:26.9]} 1-0